bitfinex/quotes_ETHUSD_20230113
["timestamp","ask_amount","ask_price","bid_price","bid_amount"]
[1673638901338,0.09960724,1417.8,1417.7,0.066]
[1673638901339,9.40196345,1417.8,1417.7,0.066]
[1673638901597,9.40196345,1417.8,1417.5,26.50968]
[1673638901598,2.41478345,1417.8,1417.5,26.50968]
[1673638901817,9.40196345,1417.8,1417.6,3.60633272]
[1673638902126,11.05030141,1417.8,1417.6,3.60633272]
[1673638903229,1.05617621,1417.7,1417.6,3.60633272]
[1673638904496,1.6819452,1417.8,1417.6,3.60633272]
[1673638904497,2.73812141,1417.8,1417.6,3.60633272]
[1673638905202,14.10834,1417.6,1417.5,0.066]
[1673638905336,8.17516197,1417.6,1417.3,0.066]
[1673638905544,8.17516197,1417.6,1417.2,7.58519]
[1673638905545,1.12099197,1417.6,1417.2,7.58519]
[1673638905754,8.10918197,1417.6,1417.2,23.76925067]
[1673638906013,1.12099197,1417.6,1417.2,23.76925067]
[1673638906229,1.05499197,1417.6,1417.2,30.82341067]
[1673638906441,1.05499197,1417.6,1417.2,30.82541067]
[1673638906592,1.05499197,1417.6,1417.2,30.29611067]
[1673638906802,8.10918197,1417.6,1417.2,30.29611067]
[1673638907116,7.12019,1417.6,1417.3,4.75025017]
[1673638907378,7.12019,1417.6,1417.3,13.08518107]
[1673638907548,0.066,1417.6,1417.3,13.15118107]
[1673638907779,34.62957778,1417.7,1417.3,13.15118107]
[1673638910184,34.62957778,1417.7,1417.3,10.12157]
[1673638910389,1.05499197,1417.6,1417.3,10.12157]
[1673638910619,18.23492993,1417.6,1417.3,3.066]
[1673638910834,18.30092993,1417.6,1417.3,3.0]
[1673638911043,18.30092993,1417.6,1417.3,10.05563]
[1673638911044,11.77559993,1417.6,1417.3,10.05563]
[1673638911388,1.05499197,1417.5,1417.3,14.17729]
[1673638911567,11.77559993,1417.6,1417.3,7.12163]
[1673638911952,2.60999197,1417.6,1417.3,14.17729]
[1673638912214,2.60999197,1417.6,1417.3,17.56650378]
[1673638912215,2.54399197,1417.6,1417.3,17.56650378]
[1673638913162,2.54399197,1417.6,1417.3,7.12163]
[1673638913163,11.18057993,1417.6,1417.3,7.12163]
[1673638913323,11.24657993,1417.6,1417.3,7.11939237]
[1673638915372,11.24657993,1417.6,1417.3,14.17505237]
[1673638915373,1.12099197,1417.6,1417.3,14.17505237]
[1673638915532,1.05499197,1417.6,1417.3,14.17505237]
[1673638915737,1.05499197,1417.6,1417.3,17.56406146]
[1673638915955,1.05499197,1417.6,1417.3,24.61972146]
[1673638916686,13.00762993,1417.7,1417.3,24.61972146]
[1673638916901,12.47852993,1417.7,1417.3,26.61699694]
[1673638917263,12.47852993,1417.7,1417.5,7.05467]
[1673638917486,4.19032993,1417.7,1417.5,7.12067]
[1673638917779,1.05499197,1417.6,1417.5,7.12067]
[1673638919206,1.05499197,1417.6,1417.5,0.066]
[1673638919416,1.58409197,1417.6,1417.4,21.23059]
[1673638920479,1.58409197,1417.6,1417.4,14.17562]
[1673638921356,1.58409197,1417.6,1417.4,7.12068]
[1673638921884,1.05499197,1417.6,1417.4,7.12068]
[1673638922813,1.05499197,1417.6,1417.4,14.17585]
[1673638923237,1.05499197,1417.6,1417.4,19.90531072]
[1673638923409,1.05499197,1417.6,1417.4,26.96048072]
[1673638925781,2.70332993,1417.7,1417.4,26.96048072]
[1673638925945,2.63732993,1417.7,1417.4,26.96048072]
[1673638926302,1.05499197,1417.7,1417.4,26.96048072]
[1673638926450,1.05499197,1417.7,1417.6,14.10834]
[1673638926683,1.05499197,1417.7,1417.6,21.22851]
[1673638926875,3.85565464,1417.8,1417.6,24.83484272]
[1673638926876,2.80293717,1417.8,1417.6,24.83484272]
[1673638927131,2.73693717,1417.8,1417.7,17.71367272]
[1673638927302,2.73693717,1417.8,1417.7,17.77967272]
[1673638927502,1.15459921,1417.8,1417.7,20.26305699]
[1673638928616,1.15459921,1417.8,1417.7,27.31672699]
[1673638929646,2.73693717,1417.8,1417.7,13.20938699]
[1673638929843,1.15459921,1417.8,1417.7,13.20938699]
[1673638930530,1.15459921,1417.8,1417.7,6.15571699]
[1673638931107,1.15459921,1417.8,1417.7,13.20938699]
[1673638931320,2.73693717,1417.8,1417.7,6.15571699]
[1673638931541,2.73693717,1417.8,1417.7,3.67233272]
[1673638931795,2.73693717,1417.8,1417.7,3.60633272]
[1673638931948,2.73693717,1417.8,1417.6,14.17374]
[1673638932158,2.73693717,1417.8,1417.6,20.93599453]
[1673638932593,2.73693717,1417.8,1417.6,13.88212453]
[1673638932843,9.79032717,1417.8,1417.6,3.67233272]
[1673638932996,1.05499197,1417.7,1417.6,3.60633272]
[1673638934155,8.10866197,1417.7,1417.6,3.60633272]
[1673638934374,9.75699993,1417.7,1417.5,7.7009]
[1673638934615,1.12099197,1417.7,1417.5,11.30723272]
[1673638934828,1.05499197,1417.7,1417.5,10.72689272]
[1673638935804,1.05499197,1417.7,1417.5,17.78156272]
[1673638936043,1.05499197,1417.7,1417.5,17.78091599]
[1673638936847,1.05499197,1417.7,1417.5,10.72624599]
[1673638936848,2.63732993,1417.7,1417.5,10.72624599]
[1673638937062,1.00499197,1417.7,1417.5,17.78091599]
[1673638937509,1.00499197,1417.7,1417.5,10.72624599]
[1673638937678,1.00499197,1417.7,1417.5,28.50660439]
[1673638937875,1.00499197,1417.7,1417.5,28.50860439]
[1673638938868,1.00499197,1417.7,1417.6,24.76884272]
[1673638939023,1.00499197,1417.7,1417.6,24.83419599]
[1673638939242,0.09960724,1417.8,1417.6,24.83419599]
[1673638939442,0.09960724,1417.8,1417.7,16.5907596]
[1673638939707,0.09960724,1417.8,1417.7,16.65611287]
[1673638940930,0.09960724,1417.8,1417.7,27.31611559]
[1673638941286,0.09960724,1417.8,1417.7,32.06596833]
[1673638941472,0.09960724,1417.8,1417.7,34.06752424]
[1673638941953,0.09960724,1417.8,1417.7,30.31611559]
[1673638942458,0.09960724,1417.8,1417.7,32.06594336]
[1673638943567,0.09960724,1417.8,1417.7,30.31611559]
[1673638945016,0.09675094,1417.8,1417.7,30.31611559]
[1673638945231,0.09675094,1417.8,1417.7,23.26244559]
[1673638945571,0.09675094,1417.8,1417.7,30.31611559]
[1673638946813,14.20311094,1417.8,1417.7,6.67168599]
[1673638947030,1.35575094,1417.8,1417.7,0.06535327]
[1673638947220,1.35575094,1417.8,1417.6,10.05397]
[1673638947221,2.34475445,1417.8,1417.6,10.05397]
[1673638947431,2.34475445,1417.8,1417.6,13.72565599]
[1673638947697,1.28975094,1417.8,1417.6,13.72565599]
[1673638947860,2.34475445,1417.8,1417.6,13.72565599]
[1673638948219,1.28975094,1417.8,1417.6,3.06535327]
[1673638948534,23.50435445,1417.8,1417.5,7.84085327]
[1673638948740,16.51714445,1417.8,1417.5,11.44718599]
[1673638948903,18.09948241,1417.8,1417.5,11.44718599]
[1673638949110,2.41075445,1417.8,1417.5,22.32831459]
[1673638949354,2.34475445,1417.8,1417.5,36.43765459]
[1673638950277,1.15175445,1417.8,1417.6,3.60633272]
[1673638950577,0.09675094,1417.8,1417.7,24.76734272]
[1673638950713,0.09675094,1417.8,1417.7,24.83269599]
[1673638951115,2.34475445,1417.8,1417.7,7.11902327]
[1673638951389,10.5770244,1417.8,1417.7,0.06535327]
[1673638951685,12.22545624,1417.8,1417.5,14.89543327]
[1673638951897,1.21784833,1417.8,1417.6,3.60633272]
[1673638952130,1.15184833,1417.8,1417.6,3.60633272]
[1673638952427,1.15184833,1417.8,1417.6,10.66048272]
[1673638952640,1.15184833,1417.8,1417.6,10.72583599]
[1673638954510,1.15184833,1417.8,1417.6,17.78000599]
[1673638955787,1.15184833,1417.8,1417.6,24.83417599]
[1673638955944,1.15184833,1417.8,1417.6,28.80057259]
[1673638957869,1.15184833,1417.8,1417.6,7.63808259]
[1673638958073,1.15184833,1417.8,1417.6,3.67168599]
[1673638958074,8.20512833,1417.8,1417.6,3.67168599]
[1673638958282,8.20512833,1417.8,1417.5,14.89522327]
[1673638958283,1.05509739,1417.7,1417.5,14.89522327]
[1673638958511,1.05509739,1417.7,1417.5,17.78042599]
[1673638958842,9.78745629,1417.8,1417.5,17.78042599]
[1673638959038,1.05509739,1417.7,1417.5,10.72605599]
[1673638959363,1.05509739,1417.7,1417.5,3.67168599]
[1673638959584,1.05509739,1417.7,1417.5,3.60633272]
[1673638959797,11.38180198,1417.7,1417.5,3.60633272]
[1673638959954,4.39413198,1417.7,1417.4,21.83060395]
[1673638960164,2.74579402,1417.7,1417.4,30.49033599]
[1673638960509,4.32813198,1417.7,1417.4,32.49187667]
[1673638960681,11.38184198,1417.7,1417.4,20.43539599]
[1673638960892,4.39413198,1417.7,1417.4,22.43697006]
[1673638961135,4.32813198,1417.7,1417.4,36.54741417]
[1673638961350,1.05509739,1417.7,1417.4,36.54741417]
[1673638961542,1.05509739,1417.7,1417.5,1.75011498]
[1673638961760,2.73418629,1417.8,1417.5,12.4109577]
[1673638961965,1.15184833,1417.8,1417.6,3.60633272]
[1673638962195,0.09675094,1417.8,1417.7,25.12797599]
[1673638962381,0.09675094,1417.8,1417.7,25.19332926]
[1673638962701,1.28975094,1417.8,1417.7,3.67168599]
[1673638962823,3.92718629,1417.8,1417.6,0.06535327]
[1673638962994,2.87384833,1417.8,1417.5,10.05445]
[1673638963206,4.45618629,1417.8,1417.5,20.78058599]
[1673638963450,11.50943629,1417.8,1417.5,8.67270883]
[1673638963662,15.35213435,1417.8,1417.5,6.67168599]
[1673638963882,1.05509739,1417.7,1417.5,6.67168599]
[1673638964078,15.1471522,1417.8,1417.5,8.67270883]
[1673638964411,1.05509739,1417.7,1417.5,10.72631599]
[1673638966831,1.05509739,1417.7,1417.5,10.72346363]
[1673638968370,2.63743535,1417.7,1417.5,10.72346363]
[1673638968582,1.05509739,1417.7,1417.5,10.72346363]
[1673638968790,2.63743535,1417.7,1417.5,10.72346363]
[1673638969001,1.05509739,1417.7,1417.5,17.77813363]
[1673638969228,2.63743535,1417.7,1417.5,10.72346363]
[1673638970422,2.80018629,1417.8,1417.6,3.60633272]
[1673638970561,1.15184833,1417.8,1417.7,21.16101]
[1673638970770,1.15184833,1417.8,1417.7,21.22351091]
[1673638971616,1.15184833,1417.8,1417.7,24.82984363]
[1673638971821,0.09675094,1417.8,1417.7,24.82984363]
[1673638972074,3.92718629,1417.8,1417.7,0.06250091]
[1673638972276,5.31705657,1417.8,1417.5,14.10904]
[1673638972486,3.99318629,1417.8,1417.6,3.60633272]
[1673638972702,4.45618629,1417.8,1417.6,7.05417]
[1673638972920,0.44561863,1417.7,1417.6,7.11667091]
[1673638973300,3.26318629,1417.8,1417.6,14.17084091]
[1673638973510,3.26318629,1417.8,1417.6,0.06250091]
[1673638973836,1.05509739,1417.7,1417.6,7.05404]
[1673638974054,1.05509739,1417.7,1417.6,7.11654091]
[1673638974360,1.05509739,1417.7,1417.6,0.06250091]
[1673638974576,1.38801602,1417.7,1417.5,21.22557091]
[1673638975347,1.38801602,1417.7,1417.5,14.17115091]
[1673638975714,2.97035398,1417.7,1417.5,14.17115091]
[1673638976134,1.05509739,1417.7,1417.5,21.22582091]
[1673638977426,2.73418629,1417.8,1417.5,21.22582091]
[1673638978373,1.15184833,1417.8,1417.6,5.35635247]
[1673638978707,2.73418629,1417.8,1417.7,7.05367]
[1673638978914,2.73418629,1417.8,1417.7,7.11617091]
[1673638979072,1.15184833,1417.8,1417.7,17.77617363]
[1673638979287,1.15184833,1417.8,1417.7,10.72250363]
[1673638980180,16.9784489,1417.8,1417.7,0.06250091]
[1673638980335,16.9784489,1417.8,1417.6,7.05399]
[1673638980336,3.01565918,1417.8,1417.6,7.05399]
[1673638980548,2.73562039,1417.8,1417.6,7.11649091]
[1673638980871,1.05653149,1417.7,1417.6,14.17066091]
[1673638981038,1.05653149,1417.7,1417.6,7.11649091]
[1673638981350,1.05653149,1417.7,1417.6,0.06250091]
[1673638981541,1.05653149,1417.7,1417.5,14.17138091]
[1673638981756,1.05653149,1417.7,1417.5,21.15548476]
[1673638981964,1.05653149,1417.7,1417.5,23.15715889]
[1673638983613,1.05653149,1417.7,1417.6,1.75004938]
[1673638984979,1.05653149,1417.7,1417.5,31.26795519]
[1673638985188,1.05653149,1417.7,1417.6,3.60633272]
[1673638985508,2.80162039,1417.8,1417.6,30.70202421]
[1673638985870,1.15328243,1417.8,1417.7,26.51736239]
[1673638986084,1.15328243,1417.8,1417.7,26.5798633]
[1673638987234,0.09675094,1417.8,1417.7,26.5798633]
[1673638987426,0.09675094,1417.8,1417.7,23.66665897]
[1673638987600,8.20646243,1417.8,1417.7,5.41875692]
[1673638987970,15.32564243,1417.8,1417.7,3.66883363]
[1673638988182,1.21928243,1417.8,1417.6,0.06250091]
[1673638988462,1.21928243,1417.8,1417.7,7.05367]
[1673638988463,1.15328243,1417.8,1417.7,7.05367]
[1673638988627,1.15328243,1417.8,1417.7,7.11281764]
[1673638988779,1.15328243,1417.8,1417.7,7.11617091]
[1673638988993,0.09675094,1417.8,1417.7,22.97340297]
[1673638989443,1.15328243,1417.8,1417.7,22.97340297]
[1673638989656,0.09675094,1417.8,1417.7,22.97340297]
[1673638990498,1.15328243,1417.8,1417.7,22.97340297]
[1673638990720,0.09675094,1417.8,1417.7,22.97340297]
[1673638990889,0.09324007,1417.8,1417.7,26.64264195]
[1673638991098,0.09324007,1417.8,1417.7,30.24897467]
[1673638991741,1.14977156,1417.8,1417.7,28.49908261]
[1673638993099,0.09324007,1417.8,1417.7,30.24900267]
[1673638993327,0.09324007,1417.8,1417.7,32.25100764]
[1673638993571,0.09324007,1417.8,1417.7,30.24900267]
[1673638999859,0.09324007,1417.8,1417.7,32.24900967]
[1673639002492,0.09324007,1417.8,1417.7,30.24900267]
[1673639002697,0.09324007,1417.8,1417.7,32.24900967]
[1673639004698,0.09324007,1417.8,1417.7,30.24900267]
[1673639006412,0.09324007,1417.8,1417.7,32.24862054]
[1673639007378,0.09324007,1417.8,1417.7,9.08799267]
[1673639007694,0.09324007,1417.8,1417.7,12.47242369]
[1673639007853,0.09324007,1417.8,1417.7,10.72250363]
[1673639008591,1.14977156,1417.8,1417.7,3.66883363]
[1673639008914,8.20295156,1417.8,1417.7,3.60633272]
[1673639009133,1.21577156,1417.8,1417.6,2.06210975]
[1673639009339,1.21577156,1417.8,1417.6,3.60633272]
[1673639009340,2.73210952,1417.8,1417.6,3.60633272]
[1673639009539,1.05653149,1417.7,1417.6,3.60633272]
[1673639010604,1.05653149,1417.7,1417.6,10.66050272]
[1673639010809,1.05653149,1417.7,1417.6,10.72300363]
[1673639011083,2.73210952,1417.8,1417.6,10.72300363]
[1673639011793,11.04482112,1417.8,1417.6,3.6653969]
[1673639011948,4.05764112,1417.8,1417.6,3.60289599]
[1673639012158,3.99164112,1417.8,1417.6,3.60289599]
[1673639012796,3.99164112,1417.8,1417.6,17.71086599]
[1673639013011,3.99164112,1417.8,1417.6,17.7733669]
[1673639013012,2.40930316,1417.8,1417.6,17.7733669]
[1673639013262,1.14977156,1417.8,1417.6,17.7733669]
[1673639013474,1.14977156,1417.8,1417.6,24.8275369]
[1673639013681,1.14977156,1417.8,1417.6,26.82827322]
[1673639013894,1.14977156,1417.8,1417.6,24.8275369]
[1673639014051,1.14977156,1417.8,1417.6,26.82826929]
[1673639014263,1.14977156,1417.8,1417.6,24.8275369]
[1673639014576,1.14977156,1417.8,1417.6,26.82860298]
[1673639016170,1.09977156,1417.8,1417.6,31.44821691]
[1673639018093,1.09977156,1417.8,1417.7,3.60633272]
[1673639018472,8.15295156,1417.8,1417.6,0.06250091]
[1673639018699,8.15295156,1417.8,1417.6,10.66047272]
[1673639018700,1.16577156,1417.8,1417.6,10.66047272]
[1673639018897,2.68210952,1417.8,1417.6,10.72297363]
[1673639020269,2.68210952,1417.8,1417.6,17.77714363]
[1673639020707,1.09977156,1417.8,1417.6,17.77714363]
[1673639020937,1.09977156,1417.8,1417.6,30.74696633]
[1673639021108,1.09977156,1417.8,1417.6,19.778217]
[1673639021317,1.09977156,1417.8,1417.6,26.832387]
[1673639021580,1.09977156,1417.8,1417.6,19.778217]
[1673639022297,2.68210952,1417.8,1417.6,17.77714363]
[1673639022840,1.05653149,1417.7,1417.6,14.17039091]
[1673639023010,2.68210952,1417.8,1417.6,15.92043179]
[1673639023225,2.68210952,1417.8,1417.6,14.17039091]
[1673639023574,2.68210952,1417.8,1417.6,21.22456091]
[1673639028015,1.05653149,1417.7,1417.6,21.22456091]
[1673639028228,2.68210952,1417.8,1417.6,21.22456091]
[1673639029016,1.05653149,1417.7,1417.6,21.22256091]
[1673639029224,1.05653149,1417.7,1417.6,21.22456091]
[1673639030422,2.68210952,1417.8,1417.6,21.22456091]
[1673639030849,1.05653149,1417.7,1417.6,21.22456091]
[1673639033922,1.09977156,1417.8,1417.6,22.97465984]
[1673639034240,1.09977156,1417.8,1417.6,21.22456091]
[1673639035604,1.09977156,1417.8,1417.6,28.38472248]
[1673639035760,1.09977156,1417.8,1417.6,30.3852838]
[1673639037516,1.09977156,1417.8,1417.7,10.66000272]
[1673639037691,1.09977156,1417.8,1417.7,17.77617363]
[1673639037908,0.04324007,1417.8,1417.7,17.77617363]
[1673639038085,0.04324007,1417.8,1417.7,20.81461101]
[1673639038542,1.09977156,1417.8,1417.7,20.81461101]
[1673639039381,1.09977156,1417.8,1417.7,13.76094101]
[1673639040399,1.09977156,1417.8,1417.7,13.75795609]
[1673639040400,2.68210952,1417.8,1417.7,13.75795609]
[1673639040594,1.09990304,1417.8,1417.7,13.75795609]
[1673639041955,1.09990304,1417.8,1417.7,10.71951871]
[1673639043064,1.09990304,1417.8,1417.7,24.82685871]
[1673639043274,0.04324007,1417.8,1417.7,19.52310003]
[1673639043433,1.09990304,1417.8,1417.7,26.57677003]
[1673639043638,1.09990304,1417.8,1417.7,30.40084255]
[1673639045740,1.09990304,1417.8,1417.7,26.57677003]
[1673639046288,0.04324007,1417.8,1417.7,26.57677003]
[1673639046501,1.09990304,1417.8,1417.7,26.57677003]
[1673639046710,0.04324007,1417.8,1417.7,26.57677003]
[1673639046891,0.04324007,1417.8,1417.7,28.57793011]
[1673639047267,0.04324007,1417.8,1417.7,31.65732486]
[1673639047457,0.04324007,1417.8,1417.7,33.65848494]
[1673639048301,0.04324007,1417.8,1417.7,32.60211864]
[1673639050077,0.04324007,1417.8,1417.7,32.5988295]
[1673639050576,0.04324007,1417.8,1417.7,11.4378195]
[1673639050779,0.04324007,1417.8,1417.7,9.43665942]
[1673639050994,1.09990304,1417.8,1417.7,3.66255957]
[1673639051235,1.09990304,1417.8,1417.7,3.60005866]
[1673639051465,1.09990304,1417.8,1417.6,23.2248387]
[1673639051656,1.09990304,1417.8,1417.7,14.10734]
[1673639051871,1.09990304,1417.8,1417.7,21.22351091]
[1673639052256,2.96124581,1417.8,1417.7,0.06250091]
[1673639052489,1.90458284,1417.8,1417.6,24.83048363]
[1673639052706,1.90458284,1417.8,1417.6,7.11637091]
[1673639052707,1.05685386,1417.7,1417.6,7.11637091]
[1673639052954,1.05685386,1417.7,1417.6,0.06250091]
[1673639053110,1.05685386,1417.7,1417.5,27.28330257]
[1673639053316,1.05685386,1417.7,1417.5,22.77863899]
[1673639054204,8.67884803,1417.8,1417.6,1.75004895]
[1673639054205,2.74843189,1417.8,1417.6,1.75004895]
[1673639054425,2.74843189,1417.8,1417.6,8.80397895]
[1673639054426,4.68818951,1417.8,1417.6,8.80397895]
[1673639054734,4.68818951,1417.8,1417.6,21.22477091]
[1673639054894,2.68243189,1417.8,1417.6,21.22477091]
[1673639055106,1.05685386,1417.7,1417.6,0.06250091]
[1673639055365,1.05685386,1417.7,1417.5,27.83235363]
[1673639055533,1.05685386,1417.7,1417.5,29.83315899]
[1673639059878,2.68243189,1417.8,1417.5,30.88952529]
[1673639060854,1.05685386,1417.7,1417.5,29.83315899]
[1673639062303,1.62557803,1417.8,1417.5,30.88952529]
[1673639062304,2.68243189,1417.8,1417.5,30.88952529]
[1673639062513,4.79108173,1417.8,1417.5,29.83315899]
[1673639062727,1.05685386,1417.7,1417.5,29.83315899]
[1673639063690,1.05685386,1417.7,1417.5,29.83323899]
[1673639063965,1.62557803,1417.8,1417.5,29.83323899]
[1673639063966,2.68243189,1417.8,1417.5,30.88960529]
[1673639064129,2.68243189,1417.8,1417.6,1.75004355]
[1673639064448,2.68243189,1417.8,1417.6,22.91186355]
[1673639064754,2.68243189,1417.8,1417.6,21.22432091]
[1673639067287,11.13899773,1417.8,1417.6,0.06250091]
[1673639067476,1.05685386,1417.7,1417.5,12.11778627]
[1673639067816,2.17735163,1417.7,1417.5,10.11706091]
[1673639068024,1.05685386,1417.7,1417.5,10.11706091]
[1673639068390,2.63919182,1417.7,1417.5,10.11706091]
[1673639068651,1.05685386,1417.7,1417.5,3.06250091]
[1673639068805,1.05685386,1417.7,1417.5,10.05467]
[1673639069018,1.05685386,1417.7,1417.5,24.22651091]
[1673639069230,1.05685386,1417.7,1417.5,26.22731627]
[1673639071523,1.68280458,1417.7,1417.5,19.17264627]
[1673639071673,1.68280458,1417.7,1417.5,3.06250091]
[1673639071674,3.26514254,1417.7,1417.5,3.06250091]
[1673639071870,3.26514254,1417.7,1417.4,26.72251131]
[1673639072078,0.32651425,1417.6,1417.4,37.38401403]
[1673639072288,0.32317645,1417.6,1417.5,1.75016915]
[1673639072522,5.83114254,1417.7,1417.5,7.05467]
[1673639072847,3.33114254,1417.7,1417.5,7.11717091]
[1673639073009,1.68280458,1417.7,1417.5,7.11717091]
[1673639073431,3.26514254,1417.7,1417.5,7.11717091]
[1673639073866,5.94970607,1417.6,1417.5,0.06250091]
[1673639074220,23.67490165,1417.6,1417.2,8.17466721]
[1673639074383,1.497,1417.4,1417.3,1.75043976]
[1673639074588,1.75237564,1417.4,1417.3,1.75043976]
[1673639074800,2.28157564,1417.4,1417.2,0.06250091]
[1673639075019,2.80913203,1417.4,1417.1,2.70465462]
[1673639075295,2.80913203,1417.4,1417.2,1.75045753]
[1673639075296,1.75237564,1417.4,1417.2,1.75045753]
[1673639075897,2.80913203,1417.4,1417.1,3.66883363]
[1673639076076,2.80913203,1417.4,1417.1,3.60633272]
[1673639076285,1.7779132,1417.3,1417.0,10.69728494]
[1673639076490,1.49,1417.2,1417.1,1.75062179]
[1673639076910,1.49,1417.2,1417.0,20.30435136]
[1673639077159,0.2809132,1417.3,1417.1,1.75054519]
[1673639077160,1.493,1417.3,1417.1,1.75054519]
[1673639077472,4.27062456,1417.3,1417.0,20.84027766]
[1673639077687,4.27062456,1417.3,1417.0,18.83945993]
[1673639077903,1.493,1417.3,1417.0,10.72593363]
[1673639078056,1.493,1417.3,1417.0,12.72675136]
[1673639079346,1.493,1417.3,1417.0,10.72593363]
[1673639079557,15.60436,1417.3,1417.0,0.06250091]
[1673639079878,3.057436,1417.2,1416.9,19.1307218]
[1673639080215,17.170186,1417.2,1416.9,22.73705452]
[1673639080366,17.236186,1417.2,1416.9,21.68068822]
[1673639080576,24.292716,1417.2,1416.9,8.0577555]
[1673639080835,3.2206186,1417.1,1416.9,0.1301555]
[1673639080996,1.488,1417.0,1416.9,0.06765459]
[1673639083329,8.54516,1417.0,1416.9,0.06765459]
[1673639083544,8.61116,1417.0,1416.9,0.06765459]
[1673639083883,10.40323986,1417.0,1416.9,0.06765459]
[1673639085137,3.34607986,1417.0,1416.9,0.06765459]
[1673639085350,3.28007986,1417.0,1416.9,0.06765459]
[1673639086154,10.33723986,1417.0,1416.9,0.06765459]
[1673639086366,10.40323986,1417.0,1416.9,0.06765459]
[1673639087263,17.46039986,1417.0,1416.9,0.06765459]
[1673639087485,15.97239986,1417.0,1416.9,0.06765459]
[1673639087630,23.02955986,1417.0,1416.9,0.06765459]
[1673639088050,32.80955986,1417.0,1416.9,0.06765459]
[1673639088318,34.30455986,1417.0,1416.9,0.06765459]
[1673639091215,27.24739986,1417.0,1416.9,0.06765459]
[1673639091430,13.13307986,1417.0,1416.9,0.06765459]
[1673639092234,3.88237986,1417.0,1416.9,0.06765459]
[1673639092364,3.81637986,1417.0,1416.9,0.06765459]
[1673639095438,3.81637986,1417.0,1416.9,0.06451243]
[1673639097115,2.32137986,1417.0,1416.9,0.06451243]
[1673639097328,0.5293,1417.0,1416.9,0.06451243]
[1673639097659,0.5293,1417.0,1416.9,14.17983243]
[1673639097865,0.5293,1417.0,1416.9,14.24233334]
[1673639098393,0.5293,1417.1,1416.9,14.24233334]
[1673639098603,0.5293,1417.1,1416.9,7.18467334]
[1673639098917,31.67184,1417.2,1416.9,0.12701334]
[1673639099140,31.67184,1417.2,1416.9,0.06451243]
[1673639099345,24.08594,1417.2,1416.9,0.06451243]
[1673639099536,24.08594,1417.2,1416.9,9.25904367]
[1673639099537,17.02943,1417.2,1416.9,9.25904367]
[1673639099719,8.4762,1417.2,1416.9,23.43686458]
[1673639100516,8.4762,1417.2,1416.9,34.1008573]
[1673639100517,0.066,1417.2,1416.9,34.1008573]
[1673639100745,10.4563,1417.3,1417.1,7.05666]
[1673639100880,0.5952,1417.3,1417.1,7.11916091]
[1673639101090,0.5292,1417.3,1417.1,7.11916091]
[1673639101359,0.5292,1417.3,1417.1,0.06250091]
[1673639101512,0.5292,1417.3,1417.0,14.17634091]
[1673639101722,7.58489,1417.3,1417.0,9.82359264]
[1673639101934,1.497,1417.2,1417.0,0.06250091]
[1673639102195,21.16998,1417.1,1416.9,0.06451243]
[1673639102401,0.066,1417.1,1416.9,7.12177243]
[1673639102610,1.083,1417.1,1417.0,7.05716]
[1673639102775,1.085,1417.1,1417.0,7.11766091]
[1673639102989,1.083,1417.1,1417.0,7.11966091]
[1673639103730,1.083,1417.1,1417.0,14.17682091]
[1673639104375,10.1377,1417.3,1417.0,14.17682091]
[1673639104563,0.066,1417.3,1417.1,6.10633272]
[1673639104777,40.0898,1417.5,1417.2,21.16848]
[1673639104778,40.1558,1417.5,1417.2,21.16848]
[1673639105000,9.7858,1417.5,1417.2,21.23098091]
[1673639105208,10.315,1417.5,1417.2,21.23098091]
[1673639105473,0.5952,1417.5,1417.2,14.17482091]
[1673639105670,0.5292,1417.5,1417.2,14.17482091]
[1673639105825,0.5292,1417.5,1417.2,7.11866091]
[1673639106249,0.5292,1417.5,1417.2,10.58527627]
[1673639106572,8.2891,1417.6,1417.2,17.64143627]
[1673639106833,9.34585639,1417.6,1417.2,17.64143627]
[1673639107310,16.40004639,1417.6,1417.2,17.64143627]
[1673639108078,15.34329,1417.6,1417.2,17.64143627]
[1673639108242,17.04616656,1417.6,1417.2,17.64143627]
[1673639109472,18.62850452,1417.6,1417.2,17.64143627]
[1673639109620,23.29010792,1417.6,1417.2,17.64143627]
[1673639110717,23.29010792,1417.6,1417.2,24.69759627]
[1673639110884,1.05675639,1417.5,1417.2,17.64143627]
[1673639111093,1.05675639,1417.5,1417.2,24.69759627]
[1673639111350,18.62850452,1417.6,1417.2,24.69759627]
[1673639111521,23.29010792,1417.6,1417.2,24.69759627]
[1673639113084,1.05675639,1417.5,1417.2,24.69759627]
[1673639113619,1.05675639,1417.5,1417.2,17.64143627]
[1673639113828,1.05675639,1417.5,1417.2,24.69759627]
[1673639114258,2.63909435,1417.5,1417.2,14.17482091]
[1673639114469,2.63909435,1417.5,1417.2,21.23098091]
[1673639114745,1.05675639,1417.4,1417.2,0.06250091]
[1673639115037,14.1106,1417.4,1417.1,25.50367091]
[1673639115244,15.23335639,1417.4,1417.1,25.50367091]
[1673639115409,17.83470484,1417.4,1417.1,25.50367091]
[1673639115830,10.77940484,1417.4,1417.1,32.56033091]
[1673639116040,3.72410484,1417.4,1417.1,32.56033091]
[1673639116301,3.72410484,1417.4,1417.1,25.50367091]
[1673639116302,10.71338484,1417.4,1417.1,25.50367091]
[1673639116606,3.72410484,1417.4,1417.1,32.56033091]
[1673639116864,3.65810484,1417.4,1417.1,32.55803022]
[1673639116973,3.65810484,1417.4,1417.1,39.61469022]
[1673639117356,2.60134845,1417.4,1417.1,32.55803022]
[1673639117735,9.65655845,1417.4,1417.1,32.55803022]
[1673639118047,9.72255845,1417.4,1417.1,32.55803022]
[1673639118450,23.83293845,1417.4,1417.1,8.39210022]
[1673639118711,0.97225584,1417.3,1417.1,15.44856022]
[1673639119411,0.97225584,1417.3,1417.1,7.11896091]
[1673639120875,0.97225584,1417.3,1417.1,14.17562091]
[1673639121093,17.83460484,1417.4,1417.1,14.17562091]
[1673639121304,17.83460484,1417.4,1417.1,7.11896091]
[1673639121733,10.77927484,1417.4,1417.1,14.17562091]
[1673639121948,10.77927484,1417.4,1417.1,7.11896091]
[1673639122127,1.07792748,1417.3,1417.1,7.11896091]
[1673639122336,10.77927484,1417.4,1417.1,14.17562091]
[1673639122606,10.77927484,1417.4,1417.1,7.11896091]
[1673639122759,10.77927484,1417.4,1417.1,14.17562091]
[1673639122972,10.77927484,1417.4,1417.1,7.11896091]
[1673639123549,17.83466484,1417.4,1417.1,7.11896091]
[1673639123708,1.78346648,1417.3,1417.1,7.11896091]
[1673639125446,3.72410484,1417.4,1417.1,21.23228091]
[1673639125676,12.90788732,1417.5,1417.1,24.83861363]
[1673639125807,10.14945639,1417.5,1417.1,21.23228091]
[1673639127485,0.066,1417.5,1417.1,26.32561363]
[1673639127716,9.34585639,1417.6,1417.5,0.00381695]
[1673639128122,1.12275639,1417.6,1417.5,7.05848695]
[1673639128372,1.05675639,1417.6,1417.5,7.12098786]
[1673639129020,1.05675639,1417.6,1417.5,0.06631786]
[1673639129236,1.05675639,1417.6,1417.5,0.00381695]
[1673639129385,2.63909435,1417.6,1417.5,0.00381695]